fUSD/lending_fUSD_20250111
["ID","MTS","AMOUNT","RATE_DAILY","PERIOD"]
[348577144,1736632252027,-500.0,0.00010547,2]
[348577145,1736632252037,-500.0,0.00010547,2]
[348577146,1736632252046,-201.68,0.00010547,2]
[348577147,1736632252056,-500.0,0.00010547,2]
[348577148,1736632252066,-257.72,0.00010547,2]
[348577149,1736632252078,-238.68,0.00010547,2]
[348577150,1736632252088,-295.78,0.00010547,2]
[348577151,1736632252097,-500.0,0.00010547,2]
[348577152,1736632252108,-500.0,0.00010547,2]
[348577153,1736632252117,-313.18,0.00010547,2]
[348577154,1736632252126,-802.93,0.00010547,2]
[348577155,1736632252136,-244.2,0.00010547,2]
[348577156,1736632252145,-500.0,0.00010547,2]
[348577157,1736632252154,-518.88,0.00010547,2]
[348577158,1736632252164,-648.1,0.00010547,2]
[348577159,1736632252173,-500.0,0.00010547,2]
[348577160,1736632252183,-535.64,0.00010547,2]
[348577161,1736632252193,-1341.12,0.00010547,2]
[348577162,1736632252202,-500.0,0.00010547,2]
[348577163,1736632252259,-444.7,0.00010547,2]
[348577164,1736632252270,-460.02,0.00010547,2]
[348577165,1736632252279,-863.01,0.00010547,2]
[348577166,1736632252288,-160.94,0.00010547,2]
[348577167,1736632252298,-500.0,0.00010547,2]
[348577168,1736632252307,-500.0,0.00010547,2]
[348577169,1736632252316,-500.0,0.00010547,2]
[348577170,1736632252326,-545.98,0.00010547,2]
[348577171,1736632252335,-1086.94,0.00010547,2]
[348577172,1736632252344,-500.0,0.00010547,2]
[348577173,1736632252353,-500.0,0.00010547,2]
[348577174,1736632252363,-507.35,0.00010547,2]
[348577175,1736632252371,-500.0,0.00010547,2]
[348577176,1736632252381,-500.0,0.00010547,2]
[348577177,1736632252389,-629.10260946,0.0001057,2]
[348577178,1736632252398,-291.6,0.0001066,2]
[348577179,1736632252407,-162.7,0.00010743,2]
[348577180,1736632252417,-500.0,0.0001082,2]
[348577181,1736632252426,-259.87536569,0.0001082,2]
[348577182,1736632252435,-426.13789661,0.0001082,2]
[348577183,1736632252443,-500.0,0.0001082,2]
[348577184,1736632252452,-360.95,0.0001082,2]
[348577185,1736632252462,-418.53,0.0001082,2]
[348577186,1736632252471,-500.0,0.0001082,2]
[348577187,1736632252480,-500.0,0.0001082,2]
[348577188,1736632252489,-500.0,0.0001082,2]
[348577189,1736632252498,-500.0,0.0001082,2]
[348577190,1736632252507,-500.0,0.0001082,2]
[348577191,1736632252516,-286.61,0.0001082,2]
[348577192,1736632252525,-500.0,0.0001082,2]
[348577193,1736632252535,-500.0,0.0001082,2]
[348577194,1736632252544,-534.13,0.0001082,2]
[348577195,1736632252553,-500.0,0.0001082,2]
[348577196,1736632252563,-500.0,0.0001082,2]
[348577197,1736632252572,-500.0,0.0001082,2]
[348577198,1736632252581,-500.0,0.0001082,2]
[348577199,1736632252591,-224.0,0.0001082,2]
[348577200,1736632252600,-500.0,0.0001082,2]
[348577201,1736632252609,-500.0,0.0001082,2]
[348577202,1736632252619,-416.95,0.0001082,2]
[348577203,1736632252628,-500.0,0.0001082,2]
[348577204,1736632252637,-500.0,0.0001082,2]
[348577205,1736632252647,-156.979981,0.0001082,2]
[348577206,1736632252657,-500.0,0.0001082,2]
[348577207,1736632252667,-500.0,0.0001082,2]
[348577208,1736632252675,-500.0,0.0001082,2]
[348577209,1736632252685,-150.579344,0.0001082,2]
[348577210,1736632252694,-500.0,0.0001082,2]
[348577211,1736632252703,-500.0,0.0001082,2]
[348577212,1736632252712,-1732.62,0.0001082,2]
[348577213,1736632252722,-1089.44,0.0001082,2]
[348577214,1736632252731,-500.0,0.0001082,2]
[348577215,1736632252740,-500.0,0.0001082,2]
[348577216,1736632252749,-686.44,0.0001082,2]
[348577217,1736632252758,-500.0,0.0001082,2]
[348577218,1736632252768,-500.0,0.0001082,2]
[348577219,1736632252777,-716.91,0.0001082,2]
[348577220,1736632252786,-484.79,0.0001082,2]
[348577221,1736632252795,-500.0,0.0001082,2]
[348577222,1736632252805,-1167.93,0.0001082,2]
[348577223,1736632252814,-500.0,0.0001082,2]
[348577224,1736632252823,-3206.49,0.0001082,2]
[348577225,1736632252832,-500.0,0.0001082,2]
[348577226,1736632252842,-500.0,0.0001082,2]
[348577227,1736632252851,-371.79,0.0001082,2]
[348577228,1736632252860,-500.0,0.0001082,2]
[348577229,1736632252870,-828.77,0.0001082,2]
[348577230,1736632252879,-500.0,0.0001082,2]
[348577231,1736632252888,-500.0,0.0001082,2]
[348577232,1736632252898,-500.0,0.0001082,2]
[348577233,1736632252907,-298.85,0.0001082,2]
[348577234,1736632252916,-1171.0,0.0001082,2]
[348577235,1736632252925,-500.0,0.0001082,2]
[348577236,1736632252934,-1705.4,0.0001082,2]
[348577237,1736632252943,-187.3,0.0001082,2]
[348577238,1736632252953,-500.0,0.0001082,2]
[348577239,1736632252963,-500.0,0.0001082,2]
[348577240,1736632252972,-1238.73,0.0001082,2]
[348577241,1736632252981,-1726.98,0.0001082,2]
[348577242,1736632252992,-1128.55,0.0001082,2]
[348577243,1736632253003,-500.0,0.0001082,2]
[348577244,1736632253012,-500.0,0.0001082,2]
[348577245,1736632253021,-500.0,0.0001082,2]
[348577246,1736632253031,-1278.91,0.0001082,2]
[348577247,1736632253041,-1053.73,0.0001082,2]
[348577248,1736632253050,-500.0,0.0001082,2]
[348577249,1736632253059,-648.41,0.0001082,2]
[348577250,1736632253069,-168.17,0.0001082,2]
[348577251,1736632253078,-972.79,0.0001082,2]
[348577252,1736632253088,-500.0,0.0001082,2]
[348577253,1736632253097,-500.0,0.0001082,2]
[348577254,1736632253107,-500.0,0.0001082,2]
[348577255,1736632253117,-594.21,0.0001082,2]
[348577256,1736632253127,-1097.76,0.0001082,2]
[348577257,1736632253136,-722.95,0.0001082,2]
[348577258,1736632253145,-1351.25,0.0001082,2]
[348577259,1736632253155,-1031.24,0.0001082,2]
[348577260,1736632253165,-555.76,0.0001082,2]
[348577261,1736632253177,-561.33,0.0001082,2]
[348577262,1736632253187,-500.0,0.0001082,2]
[348577263,1736632253196,-524.4,0.0001082,2]
[348577264,1736632253205,-310.65,0.0001082,2]
[348577265,1736632253215,-500.0,0.0001082,2]
[348577266,1736632253224,-500.0,0.0001082,2]
[348577267,1736632253233,-500.0,0.0001082,2]
[348577268,1736632253243,-500.0,0.0001082,2]
[348577269,1736632253252,-1141.12,0.0001082,2]
[348577270,1736632253261,-592.11,0.0001082,2]
[348577271,1736632253271,-255.45,0.0001082,2]
[348577272,1736632253280,-500.0,0.00010821,2]
[348577273,1736632253289,-500.0,0.00010821,2]
[348577274,1736632253298,-254.3,0.00010821,2]
[348577275,1736632253307,-715.36,0.00010821,2]
[348577276,1736632253317,-500.0,0.00010821,2]
[348577277,1736632253326,-500.0,0.00010821,2]
[348577278,1736632253336,-500.0,0.00010821,2]
[348577279,1736632253345,-500.0,0.00010821,2]
[348577280,1736632253355,-500.0,0.00010821,2]
[348577281,1736632253365,-247.58,0.00010821,2]
[348577282,1736632253375,-802.93,0.00010821,2]
[348577283,1736632253384,-648.1,0.00010821,2]
[348577284,1736632253394,-500.0,0.00010821,2]
[348577285,1736632253403,-1341.12,0.00010821,2]
[348577286,1736632253412,-181.8,0.00010821,2]
[348577287,1736632253422,-863.01,0.00010821,2]
[348577288,1736632253433,-500.0,0.00010821,2]
[348577289,1736632253443,-249.9,0.00010821,2]
[348577290,1736632253452,-545.98,0.00010821,2]
[348577291,1736632253462,-1086.94,0.00010821,2]
[348577292,1736632253471,-500.0,0.00010821,2]
[348577293,1736632253482,-500.0,0.00010821,2]
[348577294,1736632253491,-500.0,0.00010821,2]
[348577295,1736632253499,-559.44378125,0.0001089,2]
[348577296,1736632253509,-310.04,0.00010923,2]
[348577297,1736632253518,-80536.03130677,0.00010976,2]
[348577298,1736632253527,-80536.03130677,0.00010982,2]
[348577299,1736632253536,-80536.03130677,0.00010983,2]
[348577300,1736632253544,-500.0,0.00010986,2]
[348577301,1736632253554,-80536.03130677,0.00010994,2]
[348577302,1736632253562,-52309.19576856,0.00010998,2]
[348577303,1736632253801,-14347.6224138,0.00010998,2]
[348577304,1736632254424,-500.0,9.998e-05,2]
[348577305,1736632254435,-500.0,9.998e-05,2]
[348577306,1736632254445,-500.0,9.998e-05,2]
[348577307,1736632254455,-500.0,9.998e-05,2]
[348577308,1736632254464,-500.0,0.00010272,2]
[348577309,1736632254475,-500.0,0.00010272,2]
[348577310,1736632254484,-500.0,0.00010546,2]
[348577311,1736632254493,-500.0,0.00010546,2]
[348577312,1736632254503,-500.0,0.0001082,2]
[348577313,1736632254513,-5249.45358504,0.00010998,2]
[348577314,1736632254525,-8169.2,0.00010998,2]
[348577315,1736632254537,-460.55953937,0.00010998,2]
[348577316,1736632254546,-1729.44046063,0.00010999,2]
[348577317,1736632254746,-302.6822887,0.0001,2]
[348577318,1736632255078,-463.31568064,0.0001,2]
[348577319,1736632255090,-477.24801,0.0001,2]
[348577320,1736632255101,-482.15821,0.0001,2]
[348577321,1736632255113,-558.900001,0.0001,2]
[348577322,1736632255124,-715.69580966,0.0001,2]
[348577323,1736632255134,-500.0,0.00010272,2]
[348577324,1736632255143,-500.0,0.00010546,2]
[348577325,1736632255152,-500.0,0.0001082,2]
[348577326,1736632255162,-11404.26538746,0.00010999,2]
[348577327,1736632255177,-267.39240461,0.00010999,2]
[348577328,1736632255331,-543.74,9.999e-05,2]
[348577329,1736632255342,-2777.67070093,0.00010999,2]
[348577330,1736632255357,-261.0699264,0.00010999,2]
[348577331,1736632255370,-503.66142814,0.00010999,2]
[348577332,1736632255381,-317.61014283,0.00010999,2]
[348577333,1736632255393,-3469.75000198,0.00010999,2]
[348577335,1736632303356,500.0,8.464e-05,2]
[348577336,1736632324053,500.0,8.464e-05,2]
[348577337,1736632465015,527.68,8.219e-05,2]
[348577338,1736632936654,2115.0,0.0002,120]
[348577341,1736633210781,3446.0,8.333e-05,2]
[348577342,1736633210803,10000.0,8.333e-05,2]
[348577343,1736633210824,6644.0,8.333e-05,2]
[348577346,1736633412595,501.29,8.219e-05,2]
[348577351,1736633432059,-250.0,9.165e-05,2]
[348577352,1736633432071,-1712.25,9.203e-05,2]
[348577353,1736633432082,-337.75245504,9.203e-05,2]
[348577354,1736633432093,-1034.91287013,9.213e-05,2]
[348577355,1736633432158,-465.08712987,9.213e-05,2]
[348577356,1736633432169,-250.0,9.232e-05,2]
[348577357,1736633432179,-1000.0,9.407e-05,2]
[348577358,1736633432190,-8467.72,9.525e-05,2]
[348577359,1736633432200,-250.0,9.63e-05,2]
[348577360,1736633432211,-212.52,9.652e-05,2]
[348577361,1736633432221,-150.99,9.652e-05,2]
[348577362,1736633432231,-2456.12,9.652e-05,2]
[348577363,1736633432241,-23900.0,9.689e-05,2]
[348577364,1736633432252,-552.24,9.689e-05,2]
[348577365,1736633432263,-264.77,9.689e-05,2]
[348577366,1736633432273,-2907.57,9.689e-05,2]
[348577367,1736633432283,-6759.66,9.689e-05,2]
[348577368,1736633432294,-956.35,9.753e-05,2]
[348577369,1736633432304,-356.69,9.765e-05,2]
[348577370,1736633432314,-162.7,9.789e-05,2]
[348577371,1736633432325,-1000.0,9.798e-05,2]
[348577372,1736633432335,-500.0,9.834e-05,2]
[348577373,1736633432346,-14133.87326354,9.9e-05,2]
[348577374,1736633432355,-502.90185495,9.973e-05,2]
[348577375,1736633432366,-151.85613084,9.973e-05,2]
[348577376,1736633432376,-500.0,9.973e-05,2]
[348577377,1736633432386,-500.0,9.973e-05,2]
[348577378,1736633432397,-241.6803545,9.973e-05,2]
[348577379,1736633432408,-500.0,9.996e-05,2]
[348577380,1736633432418,-500.0,9.996e-05,2]
[348577381,1736633432429,-500.0,9.996e-05,2]
[348577382,1736633432439,-500.0,9.997e-05,2]
[348577383,1736633432449,-500.0,9.997e-05,2]
[348577384,1736633432460,-500.0,9.997e-05,2]
[348577385,1736633432470,-500.0,9.997e-05,2]
[348577386,1736633432480,-500.0,9.997e-05,2]
[348577387,1736633432491,-500.0,9.997e-05,2]
[348577388,1736633432501,-500.0,9.997e-05,2]
[348577389,1736633432512,-500.0,9.997e-05,2]
[348577390,1736633432522,-500.0,9.997e-05,2]
[348577391,1736633432533,-500.0,9.997e-05,2]
[348577392,1736633432543,-500.0,9.997e-05,2]
[348577393,1736633432554,-500.0,9.997e-05,2]
[348577394,1736633432564,-598.86120518,9.997e-05,2]
[348577395,1736633432574,-500.0,9.997e-05,2]
[348577396,1736633432585,-500.0,9.997e-05,2]
[348577397,1736633432596,-500.0,9.997e-05,2]
[348577398,1736633432612,-500.0,9.997e-05,2]
[348577399,1736633432623,-500.0,9.997e-05,2]
[348577400,1736633432633,-282.4719779,9.997e-05,2]
[348577402,1736633432644,-500.0,9.997e-05,2]
[348577404,1736633432655,-500.0,9.997e-05,2]
[348577406,1736633432666,-500.0,9.997e-05,2]
[348577408,1736633432676,-500.0,9.997e-05,2]
[348577410,1736633432687,-500.0,9.997e-05,2]
[348577413,1736633432698,-500.0,9.997e-05,2]
[348577415,1736633432708,-500.0,9.997e-05,2]
[348577417,1736633432717,-500.0,9.997e-05,2]
[348577419,1736633432727,-500.0,9.997e-05,2]
[348577421,1736633432738,-500.0,9.997e-05,2]
[348577423,1736633432747,-500.0,9.997e-05,2]
[348577426,1736633432765,-612.21750222,9.997e-05,2]
[348577428,1736633432777,-500.0,9.997e-05,2]
[348577431,1736633432786,-500.0,9.997e-05,2]
[348577433,1736633432795,-500.0,9.997e-05,2]
[348577435,1736633432806,-500.0,9.997e-05,2]
[348577437,1736633432815,-500.0,9.997e-05,2]
[348577439,1736633432824,-500.0,9.997e-05,2]
[348577441,1736633432834,-500.0,9.997e-05,2]
[348577481,1736633433203,-500.0,9.997e-05,2]
[348577485,1736633433228,-500.0,9.997e-05,2]
[348577487,1736633433240,-500.0,9.997e-05,2]
[348577489,1736633433250,-500.0,9.997e-05,2]
[348577491,1736633433259,-518.48,9.997e-05,2]
[348577493,1736633433268,-500.0,9.997e-05,2]
[348577495,1736633433278,-500.0,9.997e-05,2]
[348577497,1736633433288,-500.0,9.997e-05,2]
[348577499,1736633433297,-500.0,9.997e-05,2]
[348577501,1736633433307,-500.0,9.997e-05,2]
[348577503,1736633433316,-500.0,9.997e-05,2]
[348577505,1736633433325,-500.0,9.997e-05,2]
[348577507,1736633433334,-500.0,9.997e-05,2]
[348577509,1736633433343,-500.0,9.997e-05,2]
[348577511,1736633433352,-500.0,9.997e-05,2]
[348577513,1736633433362,-180.36974707,9.997e-05,2]
[348577515,1736633433371,-500.0,9.997e-05,2]
[348577517,1736633433380,-500.0,9.997e-05,2]
[348577518,1736633433390,-198.56,9.997e-05,2]
[348577521,1736633433399,-500.0,9.997e-05,2]
[348577523,1736633433409,-500.0,9.997e-05,2]
[348577524,1736633433419,-500.0,9.997e-05,2]
[348577527,1736633433428,-500.0,9.997e-05,2]
[348577528,1736633433438,-500.0,9.997e-05,2]
[348577530,1736633433447,-500.0,9.997e-05,2]
[348577532,1736633433456,-500.0,9.997e-05,2]
[348577534,1736633433465,-500.0,9.997e-05,2]
[348577536,1736633433474,-500.0,9.997e-05,2]
[348577538,1736633433483,-500.0,9.997e-05,2]
[348577540,1736633433493,-500.0,9.997e-05,2]
[348577542,1736633433503,-500.0,9.997e-05,2]
[348577544,1736633433512,-500.0,9.997e-05,2]
[348577546,1736633433522,-500.0,9.997e-05,2]
[348577548,1736633433532,-500.0,9.997e-05,2]
[348577550,1736633433543,-500.0,9.997e-05,2]
[348577552,1736633433553,-500.0,9.997e-05,2]
[348577554,1736633433563,-500.0,9.997e-05,2]
[348577556,1736633433573,-500.0,9.997e-05,2]
[348577558,1736633433587,-174.22188404,9.997e-05,2]
[348577560,1736633433598,-500.0,9.997e-05,2]
[348577562,1736633433611,-500.0,9.997e-05,2]
[348577564,1736633433621,-537.33,9.997e-05,2]
[348577566,1736633433631,-500.0,9.997e-05,2]
[348577568,1736633433643,-500.0,9.997e-05,2]
[348577570,1736633433652,-500.0,9.997e-05,2]
[348577572,1736633433663,-500.0,9.997e-05,2]
[348577574,1736633433673,-500.0,9.997e-05,2]
[348577577,1736633433684,-548.22930449,9.997e-05,2]
[348577578,1736633433694,-500.0,9.997e-05,2]
[348577580,1736633433703,-500.0,9.997e-05,2]
[348577583,1736633433714,-500.0,9.997e-05,2]
[348577584,1736633433723,-500.0,9.997e-05,2]
[348577586,1736633433733,-500.0,9.997e-05,2]
[348577588,1736633433743,-500.0,9.997e-05,2]
[348577590,1736633433752,-500.0,9.997e-05,2]
[348577592,1736633433762,-500.0,9.997e-05,2]
[348577594,1736633433772,-500.0,9.997e-05,2]
[348577596,1736633433782,-500.0,9.997e-05,2]
[348577598,1736633433791,-500.0,9.997e-05,2]
[348577600,1736633433801,-500.0,9.997e-05,2]
[348577602,1736633433810,-500.0,9.997e-05,2]
[348577605,1736633433820,-500.0,9.997e-05,2]
[348577606,1736633433829,-500.0,9.997e-05,2]
[348577608,1736633433839,-500.0,9.997e-05,2]
[348577611,1736633433849,-500.0,9.997e-05,2]
[348577613,1736633433858,-500.0,9.997e-05,2]
[348577614,1736633433867,-500.0,9.997e-05,2]
[348577616,1736633433876,-500.0,9.997e-05,2]
[348577619,1736633433886,-500.0,9.997e-05,2]
[348577620,1736633433896,-500.0,9.997e-05,2]
[348577622,1736633433905,-500.0,9.997e-05,2]
[348577624,1736633433917,-500.0,9.997e-05,2]
[348577626,1736633433927,-500.0,9.997e-05,2]
[348577628,1736633433936,-500.0,9.997e-05,2]
[348577630,1736633433946,-500.0,9.997e-05,2]
[348577632,1736633433955,-500.0,9.997e-05,2]
[348577634,1736633433965,-500.0,9.997e-05,2]
[348577636,1736633433975,-500.0,9.997e-05,2]
[348577638,1736633433984,-500.0,9.997e-05,2]
[348577640,1736633433993,-500.0,9.997e-05,2]
[348577642,1736633434003,-501.82,9.997e-05,2]
[348577645,1736633434012,-500.0,9.997e-05,2]
[348577646,1736633434022,-500.0,9.997e-05,2]
[348577648,1736633434032,-500.0,9.997e-05,2]
[348577650,1736633434041,-500.0,9.997e-05,2]
[348577652,1736633434050,-500.0,9.997e-05,2]
[348577654,1736633434060,-374.34872032,9.997e-05,2]
[348577656,1736633434069,-500.0,9.997e-05,2]
[348577658,1736633434079,-500.0,9.997e-05,2]
[348577661,1736633434089,-500.0,9.997e-05,2]
[348577662,1736633434098,-500.0,9.997e-05,2]
[348577665,1736633434107,-500.0,9.997e-05,2]
[348577666,1736633434117,-500.0,9.997e-05,2]
[348577669,1736633434126,-500.0,9.997e-05,2]
[348577671,1736633434136,-500.0,9.997e-05,2]
[348577673,1736633434146,-500.0,9.997e-05,2]
[348577675,1736633434156,-500.0,9.997e-05,2]
[348577677,1736633434167,-500.0,9.997e-05,2]
[348577679,1736633434176,-500.0,9.997e-05,2]
[348577681,1736633434186,-500.0,9.997e-05,2]
[348577683,1736633434195,-500.0,9.997e-05,2]
[348577685,1736633434204,-500.0,9.997e-05,2]
[348577687,1736633434213,-500.0,9.997e-05,2]
[348577689,1736633434223,-500.0,9.997e-05,2]
[348577691,1736633434233,-500.0,9.997e-05,2]
[348577693,1736633434242,-500.0,9.997e-05,2]
[348577694,1736633434252,-500.0,9.997e-05,2]
[348577695,1736633434261,-587.09,9.997e-05,2]
[348577696,1736633434270,-500.0,9.997e-05,2]
[348577697,1736633434279,-528.68744945,9.997e-05,2]
[348577698,1736633434289,-500.0,9.997e-05,2]
[348577699,1736633434299,-500.0,9.997e-05,2]
[348577700,1736633434309,-500.0,9.997e-05,2]
[348577701,1736633434319,-500.0,9.997e-05,2]
[348577702,1736633434328,-500.0,9.997e-05,2]
[348577703,1736633434338,-500.0,9.997e-05,2]
[348577704,1736633434347,-500.0,9.997e-05,2]
[348577705,1736633434356,-500.0,9.997e-05,2]
[348577706,1736633434366,-500.0,9.997e-05,2]
[348577707,1736633434375,-500.0,9.997e-05,2]
[348577708,1736633434384,-500.0,9.997e-05,2]
[348577709,1736633434394,-500.0,9.997e-05,2]
[348577710,1736633434404,-500.0,9.997e-05,2]
[348577711,1736633434414,-500.0,9.997e-05,2]
[348577712,1736633434424,-500.0,9.997e-05,2]
[348577713,1736633434434,-500.0,9.997e-05,2]
[348577714,1736633434443,-500.0,9.997e-05,2]
[348577715,1736633434452,-500.0,9.997e-05,2]
[348577716,1736633434463,-500.0,9.997e-05,2]
[348577717,1736633434472,-500.0,9.997e-05,2]
[348577718,1736633434481,-591.64,9.997e-05,2]
[348577719,1736633434491,-500.0,9.997e-05,2]
[348577720,1736633434500,-500.0,9.997e-05,2]
[348577721,1736633434510,-500.0,9.997e-05,2]
[348577722,1736633434519,-594.15,9.997e-05,2]
[348577723,1736633434529,-500.0,9.997e-05,2]
[348577724,1736633434538,-500.0,9.997e-05,2]
[348577725,1736633434547,-500.0,9.997e-05,2]
[348577726,1736633434557,-500.0,9.997e-05,2]
[348577727,1736633434567,-500.0,9.997e-05,2]
[348577728,1736633434577,-500.0,9.997e-05,2]
[348577729,1736633434587,-500.0,9.997e-05,2]
[348577730,1736633434596,-500.0,9.997e-05,2]
[348577731,1736633434609,-500.0,9.997e-05,2]
[348577732,1736633434619,-500.0,9.997e-05,2]
[348577733,1736633434628,-500.0,9.997e-05,2]
[348577734,1736633434638,-500.0,9.997e-05,2]
[348577735,1736633434648,-500.0,9.997e-05,2]
[348577736,1736633434658,-500.0,9.997e-05,2]
[348577737,1736633434669,-500.0,9.997e-05,2]
[348577738,1736633434678,-500.0,9.997e-05,2]
[348577739,1736633434687,-500.0,9.997e-05,2]
[348577740,1736633434697,-500.0,9.997e-05,2]
[348577741,1736633434706,-500.0,9.997e-05,2]
[348577742,1736633434715,-500.0,9.997e-05,2]
[348577743,1736633434725,-500.0,9.997e-05,2]
[348577744,1736633434735,-500.0,9.997e-05,2]
[348577745,1736633434744,-500.0,9.997e-05,2]
[348577746,1736633434753,-500.0,9.997e-05,2]
[348577747,1736633434762,-500.0,9.997e-05,2]
[348577748,1736633434771,-500.0,9.997e-05,2]
[348577749,1736633434781,-678.83,9.997e-05,2]
[348577750,1736633434791,-533.57,9.997e-05,2]
[348577751,1736633434801,-500.0,9.997e-05,2]
[348577752,1736633434810,-500.0,9.997e-05,2]
[348577753,1736633434819,-500.0,9.997e-05,2]
[348577754,1736633434828,-500.0,9.997e-05,2]
[348577755,1736633434838,-500.0,9.997e-05,2]
[348577756,1736633434848,-500.0,9.997e-05,2]
[348577757,1736633434858,-500.0,9.997e-05,2]
[348577758,1736633434868,-500.0,9.997e-05,2]
[348577759,1736633434878,-644.51,9.997e-05,2]
[348577760,1736633434888,-500.0,9.997e-05,2]
[348577761,1736633434899,-532.53,9.997e-05,2]
[348577762,1736633434908,-500.0,9.997e-05,2]
[348577763,1736633434918,-500.0,9.997e-05,2]
[348577764,1736633434927,-500.0,9.997e-05,2]
[348577765,1736633434937,-500.0,9.997e-05,2]
[348577766,1736633434947,-557.68,9.997e-05,2]
[348577767,1736633434956,-500.0,9.997e-05,2]
[348577768,1736633434965,-500.0,9.997e-05,2]
[348577769,1736633434974,-500.0,9.997e-05,2]
[348577770,1736633434983,-1054.17,9.997e-05,2]
[348577771,1736633434992,-500.0,9.997e-05,2]
[348577772,1736633435001,-500.0,9.997e-05,2]
[348577773,1736633435010,-566.95,9.997e-05,2]
[348577774,1736633435019,-500.0,9.997e-05,2]
[348577775,1736633435028,-500.0,9.997e-05,2]
[348577776,1736633435037,-500.0,9.997e-05,2]
[348577777,1736633435046,-500.0,9.997e-05,2]
[348577778,1736633435055,-500.0,9.997e-05,2]
[348577779,1736633435065,-500.0,9.997e-05,2]
[348577780,1736633435074,-500.0,9.997e-05,2]
[348577781,1736633435083,-500.0,9.997e-05,2]
[348577782,1736633435092,-500.0,9.997e-05,2]
[348577783,1736633435101,-500.0,9.997e-05,2]
[348577784,1736633435110,-500.0,9.997e-05,2]
[348577785,1736633435119,-500.0,9.997e-05,2]
[348577786,1736633435128,-500.0,9.997e-05,2]
[348577787,1736633435137,-1585.31,9.997e-05,2]
[348577788,1736633435147,-500.0,9.997e-05,2]
[348577789,1736633435156,-500.0,9.997e-05,2]
[348577790,1736633435166,-619.62,9.997e-05,2]
[348577791,1736633435175,-627.28,9.997e-05,2]
[348577792,1736633435184,-500.0,9.997e-05,2]
[348577793,1736633435193,-500.0,9.997e-05,2]
[348577794,1736633435202,-500.0,9.997e-05,2]
[348577795,1736633435211,-631.84,9.997e-05,2]
[348577796,1736633435220,-500.0,9.997e-05,2]
[348577797,1736633435229,-500.0,9.997e-05,2]
[348577798,1736633435238,-500.0,9.997e-05,2]
[348577799,1736633435247,-500.0,9.997e-05,2]
[348577800,1736633435257,-500.0,9.997e-05,2]
[348577801,1736633435266,-500.0,9.997e-05,2]
[348577802,1736633435275,-561.82,9.997e-05,2]
[348577803,1736633435283,-577.12403399,9.997e-05,2]
[348577804,1736633435293,-500.0,9.997e-05,2]
[348577805,1736633435302,-1100.84,9.997e-05,2]
[348577806,1736633435311,-500.0,9.997e-05,2]
[348577807,1736633435320,-500.0,9.997e-05,2]
[348577808,1736633435329,-500.0,9.997e-05,2]
[348577809,1736633435338,-500.0,9.997e-05,2]
[348577810,1736633435347,-2672.08,9.997e-05,2]
[348577811,1736633435356,-609.77,9.997e-05,2]
[348577812,1736633435365,-613.05,9.997e-05,2]
[348577813,1736633435374,-500.0,9.997e-05,2]
[348577814,1736633435383,-500.0,9.997e-05,2]
[348577815,1736633435392,-500.0,9.997e-05,2]
[348577816,1736633435402,-500.0,9.997e-05,2]
[348577817,1736633435411,-303.15697552,9.997e-05,2]
[348577818,1736633435420,-500.0,9.997e-05,2]
[348577819,1736633435429,-293.45151308,9.997e-05,2]
[348577820,1736633435438,-500.0,9.997e-05,2]